bitfinex-derivatives/quotes_ETHF0:USTF0_20250212
["timestamp","ask_amount","ask_price","bid_price","bid_amount"]
[1739370810817,3.2078,2579.5,2578.4,0.7269]
[1739370811117,0.77546,2579.0,2578.9,0.00582536]
[1739370811507,9.98326,2579.0,2578.9,5.36e-06]
[1739370811713,0.77587,2577.7,2577.2,3.2078]
[1739370811910,0.776,2577.2,2576.9,3.2078]
[1739370812216,0.77608,2577.0,2576.7,1.4916]
[1739370812416,3.2078,2577.7,2576.7,1.4916]
[1739370812712,3.2078,2577.9,2576.7,1.4916]
[1739370812919,3.602,2578.6,2577.4,3.2078]
[1739370813110,3.2078,2578.7,2578.0,3.2078]
[1739370813417,3.2078,2578.7,2577.4,6.9032491]
[1739370813418,3.2078,2579.4,2578.3,3.2078]
[1739370813619,0.00582536,2578.6,2578.4,0.77563]
[1739370813919,0.00582536,2578.6,2578.4,4.99511837]
[1739370814118,0.77567,2578.3,2578.2,0.00582536]
[1739370814324,0.00582536,2578.6,2578.2,0.00582536]
[1739370814325,0.77565,2578.4,2578.2,0.00582536]
[1739370814616,0.77567,2578.3,2578.2,0.00582536]
[1739370815011,0.77586,2577.7,2577.5,0.7809]
[1739370815211,0.77584,2577.8,2577.5,0.7809]
[1739370815417,3.2078,2578.1,2577.5,0.7809]
[1739370815614,0.77575,2578.1,2577.5,1.5568]
[1739370815809,0.00582536,2578.6,2578.0,3.2078]
[1739370816314,0.00582536,2578.6,2578.2,3.98349]
[1739370816615,0.00582536,2578.6,2578.5,3.2078]
[1739370816814,3.2078,2579.4,2578.5,3.2078]
[1739370817015,0.77545,2579.1,2578.5,3.9834]
[1739370817222,0.77545,2579.1,2578.8,3.2078]
[1739370817223,0.77543,2579.1,2578.8,3.2078]
[1739370817515,3.87483,2580.7,2578.8,3.2078]
[1739370817516,0.77549,2578.9,2578.8,3.2078]
[1739370818022,3.2078,2579.7,2578.8,3.2078]
[1739370818217,0.00582536,2579.1,2578.4,6.9032491]
[1739370818524,0.77533,2579.5,2579.0,3.2078]
[1739370818917,0.77532,2579.5,2579.3,3.2078]
[1739370819217,3.2078,2580.1,2579.3,3.2078]
[1739370819419,3.2078,2580.1,2579.0,8.30797773]
[1739370819622,3.2078,2579.8,2579.0,3.2078]
[1739370819814,0.77552,2578.8,2578.7,3.2078]
[1739370820126,0.77552,2578.8,2577.9,6.9032491]
[1739370820127,0.7754,2579.2,2579.1,0.00582536]
[1739370820622,3.2078,2580.3,2579.1,0.00582536]
[1739370820823,3.2078,2580.1,2579.1,0.00582536]
[1739370821023,0.77538,2579.3,2579.1,0.00582536]
[1739370821322,1.9379,2580.0,2579.1,0.00582536]
[1739370821519,3.2078,2580.5,2579.3,3.2078]
[1739370821821,0.77496,2580.7,2580.4,3.2078]
[1739370822325,3.2078,2581.7,2580.4,3.2078]
[1739370822523,0.77488,2581.0,2580.8,3.2078]
[1739370822720,3.2078,2581.2,2580.6,3.2078]
[1739370822916,0.77493,2580.8,2580.6,3.2078]
[1739370823113,1.9367,2581.6,2580.6,3.2078]
[1739370823323,0.7748,2581.2,2580.6,3.98276]
[1739370823524,0.7748,2581.2,2580.7,5.03088491]
[1739370823723,3.2078,2581.7,2580.9,3.2078]
[1739370824018,3.2078,2582.0,2581.4,3.2078]
[1739370824218,3.2078,2582.0,2581.0,5.03088491]
[1739370824418,3.2078,2581.7,2581.0,5.03088491]
[1739370824618,3.2078,2581.7,2580.8,0.7397]
[1739370824920,0.77462,2581.8,2581.2,0.77477]
[1739370825221,3.2078,2582.7,2581.5,3.2078]
[1739370825426,3.2078,2582.7,2581.5,10.1110491]
[1739370825618,3.2078,2582.7,2581.8,3.2078]
[1739370825924,0.77433,2582.8,2582.1,3.98231]
[1739370826126,0.77438,2582.6,2582.0,6.9032491]
[1739370826318,3.2078,2582.8,2581.9,3.527]
[1739370826626,0.77437,2582.7,2582.3,3.2078]
[1739370826825,3.2078,2582.8,2582.3,3.2078]
[1739370827026,3.2078,2582.5,2582.0,0.0058135]
[1739370827428,3.2078,2582.8,2582.1,5.08854198]
[1739370827624,3.2078,2583.6,2582.3,3.2078]
[1739370827927,3.2078,2583.2,2582.3,3.2078]
[1739370828117,0.77407,2583.7,2582.8,3.2078]
[1739370828319,0.77405,2583.7,2583.0,10.1110491]
[1739370828526,0.7229,2584.6,2583.2,0.77419]
[1739370828527,0.77401,2583.9,2583.2,0.77419]
[1739370828825,3.2078,2584.1,2583.6,3.2078]
[1739370829028,0.77382,2584.5,2583.9,3.2078]
[1739370829231,0.77382,2584.5,2583.7,0.77403]
[1739370829232,0.77382,2584.5,2583.7,5.92017985]
[1739370829527,3.2078,2584.6,2584.0,5.01195393]
[1739370829717,3.2078,2584.9,2584.2,3.2078]
[1739370829916,3.2078,2585.3,2584.7,3.2078]
[1739370830335,3.2078,2585.3,2584.8,5.07649129]
[1739370830828,3.2078,2585.3,2584.9,3.2078]
[1739370831427,3.98137,2585.3,2584.9,3.2078]
[1739370831627,3.2078,2585.3,2584.8,4.954847]
[1739370831821,3.2078,2585.3,2585.0,4.954847]
[1739370832025,3.2078,2585.3,2584.9,8.162647]
[1739370832230,3.2078,2585.3,2584.9,3.2078]
[1739370832425,3.2078,2585.8,2585.1,5.12521153]
[1739370832626,3.2078,2585.8,2584.9,3.2078]
[1739370832828,3.2078,2585.1,2584.7,0.0058017]
[1739370833026,3.2078,2585.7,2585.0,5.12521153]
[1739370833229,1.93326,2586.2,2585.0,5.12521153]
[1739370833230,0.77363,2585.1,2585.0,5.12521153]
[1739370833426,0.77364,2585.1,2584.7,0.0058017]
[1739370833729,3.2078,2585.4,2584.7,0.0058017]
[1739370834027,3.2078,2585.7,2584.8,3.2078]
[1739370834226,3.2078,2586.1,2585.1,3.2078]
[1739370834435,3.2078,2586.1,2585.7,3.2078]
[1739370834932,3.2078,2585.8,2584.8,4.98518047]
[1739370835129,3.2078,2585.5,2584.6,3.2078]
[1739370835328,3.2078,2585.2,2584.1,3.2078]
[1739370835527,3.2078,2584.7,2584.0,3.9883]
[1739370835724,5.14208,2584.9,2583.5,3.2078]
[1739370835931,0.77399,2583.9,2583.5,3.2078]
[1739370836125,3.2078,2584.6,2583.2,3.2078]
[1739370836332,0.77408,2583.6,2583.5,4.9393972]
[1739370836532,3.2078,2583.7,2582.8,3.2078]
[1739370836733,3.2078,2583.2,2582.5,3.2078]
[1739370836931,1.93518,2583.7,2582.0,0.737]
[1739370836932,3.2078,2582.6,2582.0,0.737]
[1739370837126,0.77452,2582.2,2581.6,6.54002254]
[1739370837331,0.77441,2582.5,2582.1,4.94363684]
[1739370837627,0.7745,2582.2,2582.0,3.2078]
[1739370837828,0.77456,2582.0,2581.9,4.94363684]
[1739370838031,0.0058017,2582.6,2581.9,15.46488594]
[1739370838228,3.2078,2583.1,2582.5,3.2078]
[1739370838440,3.2078,2583.9,2582.8,3.2078]
[1739370838725,2.49117,2584.1,2582.8,3.2078]
[1739370838929,3.2078,2583.7,2582.6,5.11173504]
[1739370839133,0.77435,2582.7,2582.6,5.11173504]
[1739370839327,3.2078,2583.2,2581.9,3.2078]
[1739370839527,0.77426,2583.0,2582.9,1.7e-06]
[1739370840129,9.98206,2583.0,2582.9,1.7e-06]
[1739370840335,9.2078,2583.0,2581.9,3.2078]
[1739370840634,0.77451,2582.2,2581.9,3.2078]
[1739370840834,3.2078,2583.0,2581.9,3.2078]
[1739370841128,3.2078,2582.8,2581.5,3.2078]
[1739370841329,3.2078,2582.2,2581.1,3.2078]
[1739370841531,3.2078,2582.2,2581.7,3.2078]
[1739370841730,0.7743,2582.9,2582.0,3.2078]
[1739370842031,0.7742,2583.2,2582.6,3.2078]
[1739370842235,6.9032491,2584.6,2583.1,3.2078]
[1739370842236,6.8128,2584.6,2583.1,3.2078]
[1739370842430,3.2078,2583.8,2583.0,3.2078]
[1739370842624,3.602,2583.8,2582.7,3.2078]
[1739370842836,0.0058017,2584.1,2583.3,3.2078]
[1739370843035,0.77414,2583.4,2583.3,3.2078]
[1739370843232,0.7742,2583.2,2583.1,1.7e-06]
[1739370843628,0.77423,2583.1,2582.3,3.2078]
[1739370843935,3.2078,2583.7,2582.4,3.2078]
[1739370844235,3.2078,2583.6,2582.8,3.2078]
[1739370844540,20.277,2584.3,2581.8,3.63]
[1739370844541,0.77411,2583.5,2583.4,3.2078]
[1739370844734,0.77398,2584.0,2583.4,3.98194]
[1739370844931,10.1110491,2585.0,2583.7,3.2078]
[1739370844932,3.2078,2584.7,2583.7,3.2078]
[1739370845240,0.0058017,2584.0,2583.9,3.2078]
[1739370845626,20.277,2585.2,2583.9,3.2078]
[1739370845831,0.77375,2584.7,2584.6,3.2078]
[1739370846839,5.14151,2585.6,2584.6,3.2078]
[1739370847029,0.0058017,2584.9,2584.4,0.0058017]
[1739370847232,6.9032491,2586.5,2584.8,3.2078]
[1739370847233,1.93307,2586.5,2584.8,3.2078]
[1739370847426,3.2078,2586.6,2585.8,3.2078]
[1739370847635,0.78691124,2585.9,2585.8,3.2078]
[1739370848934,0.77348,2585.6,2585.5,3.2078]
[1739370849334,0.77365,2585.1,2585.0,3.2078]
[1739370849535,0.77372,2584.8,2584.7,3.2078]
[1739370850145,3.2078,2585.2,2584.4,3.2136017]
[1739370850349,3.2078,2585.7,2584.7,3.2078]
[1739370850642,3.2078,2585.1,2584.4,3.2136017]
[1739370850843,5.14224,2584.7,2583.7,3.2078]
[1739370851045,0.77412,2583.5,2583.4,3.2078]
[1739370851241,0.77412,2583.5,2583.4,3.28521735]
[1739370851538,0.77412,2583.5,2583.4,0.07741735]
[1739370851745,0.77412,2583.5,2583.4,7.35e-06]
[1739370851944,0.77412,2583.5,2583.4,3.20780735]
[1739370852247,3.2078,2585.2,2584.0,0.77395]
[1739370852446,1.93398,2585.3,2584.5,3.2078]
[1739370852639,5.14178,2585.3,2584.5,3.2078]
[1739370852949,0.77378,2584.6,2584.5,3.2078]
[1739370853340,0.77387,2584.3,2584.2,3.2078]
[1739370853544,0.77402,2583.8,2583.7,3.2078]
[1739370853745,0.77393,2584.1,2584.0,1.7e-06]
[1739370854245,0.77432,2582.8,2582.7,3.2078]
[1739370854437,3.2078,2583.8,2582.5,3.2078]
[1739370854640,3.559,2583.9,2582.9,3.2078]
[1739370854641,0.77428,2583.0,2582.9,3.2078]
[1739370854848,0.77446,2582.4,2582.3,3.2078]
[1739370855139,0.77446,2582.4,2582.0,0.02857]
[1739370855140,1.93558,2583.1,2582.0,3.23637]
[1739370855345,3.2078,2583.1,2582.0,3.23637]
[1739370855544,0.77453,2582.1,2582.0,3.23637]
[1739370856136,0.77453,2582.1,2582.0,0.02857]
[1739370857150,0.77459,2581.9,2581.8,0.0058017]
[1739370858255,0.77458,2582.0,2581.8,0.0058017]
[1739370858554,0.77459,2581.9,2581.8,1.7e-06]
[1739370859456,5.1494117,2582.8,2581.8,1.7e-06]
[1739370859752,0.77453,2582.1,2582.0,3.2078]
[1739370860051,0.77459,2581.9,2581.8,1.7e-06]
[1739370860648,1.93604,2582.5,2581.8,1.7e-06]
[1739370860847,3.58,2582.6,2581.8,1.7e-06]
[1739370861057,0.77459,2581.9,2581.8,1.7e-06]
[1739370862463,3.98239,2581.9,2581.8,1.7e-06]
[1739370862775,0.77459,2581.9,2581.8,1.7e-06]
[1739370863267,1.9359,2582.7,2581.8,1.7e-06]
[1739370863467,0.0058017,2582.8,2581.8,1.7e-06]
[1739370863468,0.77438,2582.6,2582.5,3.2078]
[1739370863667,0.77447,2582.3,2582.2,3.2078]
[1739370864064,0.77459,2581.9,2581.8,1.7e-06]
[1739370864274,3.98239,2581.9,2581.8,1.7e-06]
[1739370864466,9.98239,2581.9,2581.8,1.7e-06]
[1739370865370,0.77459,2581.9,2581.8,1.7e-06]
[1739370865571,3.98239,2581.9,2581.8,1.7e-06]
[1739370865773,9.98239,2581.9,2581.8,1.7e-06]
[1739370866771,14.63149556,2581.9,2581.8,1.7e-06]
[1739370867166,0.77459,2581.9,2581.8,1.7e-06]
[1739370867365,9.98239,2581.9,2581.8,1.7e-06]
[1739370867773,10.04893261,2581.9,2581.8,1.7e-06]
[1739370867968,0.77492,2580.8,2580.7,3.2078]
[1739370868367,8.6668,2581.3,2580.7,3.2078]
[1739370868568,0.77492,2580.8,2580.7,3.2078]
[1739370868772,1.93641,2582.0,2580.7,3.2078]
[1739370868972,7.08019,2582.3,2580.7,3.2078]
[1739370868973,0.77467,2581.7,2581.6,3.2078]
[1739370870170,0.0058017,2581.9,2581.6,3.2078]
[1739370870367,0.77465,2581.7,2581.6,3.2078]
[1739370870568,0.77465,2581.7,2581.1,0.0058017]
[1739370870777,0.7748,2581.2,2581.1,0.0058017]
[1739370871573,0.7748,2581.2,2581.1,1.7e-06]
[1739370871574,9.9826,2581.2,2581.1,1.7e-06]
[1739370871971,0.77522,2579.8,2579.7,5.6299]
[1739370872178,0.77522,2579.8,2579.7,4.8284]
[1739370872373,0.77534,2579.4,2579.3,3.2078]
[1739370872578,3.2078,2579.9,2579.3,3.2078]
[1739370872885,3.2078,2580.0,2579.3,3.2078]
[1739370873078,0.77534,2579.4,2579.3,3.2078]
[1739370873278,0.77534,2579.4,2579.3,3.21361452]
[1739370873681,0.00581452,2579.9,2579.3,3.21361452]
[1739370873882,0.00581452,2579.9,2579.8,3.2078]
[1739370874081,5.14505,2580.9,2579.8,3.2078]
[1739370874276,5.14505,2580.9,2580.3,3.2078]
[1739370874277,0.77504,2580.4,2580.3,3.2078]
[1739370874584,1.93729,2580.9,2579.9,8.94164249]
[1739370874885,0.77507,2580.3,2580.2,3.2078]
[1739370875179,0.00581452,2580.5,2579.8,3.2078]
[1739370875385,0.77519,2579.9,2579.8,3.2078]
[1739370876180,0.77519,2579.9,2579.3,0.00581452]
[1739370876181,0.77534,2579.4,2579.3,0.00581452]
[1739370877689,3.98314,2579.4,2579.3,4.52e-06]
[1739370878286,9.98314,2579.4,2579.3,4.52e-06]
[1739370878483,3.98314,2579.4,2579.3,4.52e-06]
[1739370878986,0.77534,2579.4,2579.3,4.52e-06]
[1739370880481,1.93812,2579.8,2579.3,4.52e-06]
[1739370880482,0.77523,2579.8,2579.5,0.77529]
[1739370880683,0.77523,2579.8,2579.7,3.2078]
[1739370881282,1.93772,2580.3,2579.5,3.2078]
[1739370881283,1.93782,2580.1,2579.5,3.2078]
[1739370881484,3.403,2580.0,2579.3,4.52e-06]
[1739370881677,0.77534,2579.4,2579.3,4.52e-06]
[1739370882681,0.7753,2579.6,2579.4,0.77533]
[1739370882881,0.7753,2579.6,2579.3,4.52e-06]
[1739370882882,0.7753,2579.6,2579.5,3.2078]
[1739370883179,0.77524,2579.8,2579.6,0.77527]
[1739370883581,0.77517,2580.0,2579.7,0.77522]
[1739370883884,0.77517,2580.0,2579.9,3.2078]
[1739370885187,0.00581452,2580.5,2579.9,3.2078]
[1739370885383,0.77507,2580.3,2580.2,3.2078]
[1739370886490,0.77519,2579.9,2579.8,3.2078]
[1739370888289,3.2078,2580.4,2579.3,3.20780452]
[1739370888485,3.98314,2579.4,2579.3,4.52e-06]
[1739370888994,0.77534,2579.4,2579.3,4.52e-06]
[1739370889488,3.98314,2579.4,2579.3,4.52e-06]
[1739370890392,9.98314,2579.4,2579.3,4.52e-06]
[1739370890582,10.09234,2579.4,2579.3,4.52e-06]
[1739370891086,4.09234,2579.4,2579.3,4.52e-06]
[1739370891286,0.77534,2579.4,2579.3,4.52e-06]
[1739370891487,3.21361452,2580.5,2579.3,3.20780452]
[1739370891688,0.77534,2579.4,2579.3,3.20780452]
[1739370891888,1.93798,2579.9,2579.3,3.20780452]
[1739370892086,1.94336452,2580.5,2579.6,3.2078]
[1739370892295,0.77519,2579.9,2579.7,0.77524]
[1739370892492,0.77524,2579.8,2579.6,3.2078]
[1739370892687,1.94336452,2580.5,2579.6,3.2078]
[1739370892892,0.77523,2579.8,2579.6,3.98307]
[1739370893197,1.9376,2580.4,2579.6,3.98306]
[1739370893388,0.7751,2580.2,2580.1,3.2078]
[1739370895395,0.77522,2579.8,2579.7,3.2078]
[1739370896093,0.77514,2580.1,2579.8,0.7752]
[1739370896297,0.77514,2580.1,2580.0,3.2078]
[1739370896994,0.77532,2579.5,2579.3,3.98317452]
[1739370897195,3.2078,2580.3,2579.3,3.20780452]
[1739370897499,0.77522,2579.8,2579.6,3.2078]
[1739370898201,0.77525,2579.7,2579.6,3.2078]
[1739370899494,0.77534,2579.4,2579.3,4.52e-06]
[1739370900299,6.0,2579.4,2578.5,3.2078]
[1739370900500,4.58256486,2579.8,2578.5,3.2078]
[1739370900501,0.77558,2578.6,2578.5,3.2078]
[1739370900697,0.77536,2579.4,2578.5,3.2078]
[1739370900900,0.77535,2579.4,2579.3,3.2078]
[1739370901097,1.93772,2580.3,2579.3,3.2078]
[1739370901098,5.14534,2580.5,2579.3,3.2078]
[1739370901297,5.14534,2580.5,2579.9,3.2078]
[1739370901496,8.45699486,2581.0,2579.0,3.258]
[1739370901497,0.77525,2579.7,2579.6,3.21361452]
[1739370901696,0.00581452,2580.2,2579.6,3.21361452]
[1739370901902,0.00581452,2580.2,2580.0,0.77514]
[1739370902104,0.00581452,2580.2,2580.0,0.77513]
[1739370902398,0.00581452,2580.2,2580.1,0.77513]
[1739370902597,0.30475533,2581.5,2580.1,4.58256486]
[1739370902792,3.2078,2581.9,2581.1,3.2078]
[1739370902999,0.77469,2581.6,2581.4,3.2078]
[1739370903199,0.31629132,2582.1,2581.4,3.2078]
[1739370903403,0.77461,2581.9,2581.7,3.2078]
[1739370903707,0.00581452,2582.1,2581.7,3.2078]
[1739370903897,0.00581452,2582.1,2582.0,3.2078]
[1739370904409,0.00581452,2582.1,2581.7,3.2078]
[1739370904706,0.77462,2581.8,2581.7,3.2078]
[1739370905007,0.00581452,2582.1,2581.7,3.2078]
[1739370905404,0.78035452,2582.1,2581.7,3.2078]
[1739370905594,0.00581452,2582.1,2582.0,3.2078]
[1739370905902,0.77441,2582.5,2582.0,3.2078]
[1739370906203,4.58256486,2583.4,2581.8,4.58256486]
[1739370906204,3.2078,2583.4,2582.4,3.2078]
[1739370906409,3.2078,2583.4,2582.8,3.2078]
[1739370906703,3.224,2583.7,2582.8,3.2078]
[1739370906905,0.77416,2583.4,2583.1,3.2078]
[1739370907100,0.7742,2583.2,2583.1,3.2078]
[1739370907401,0.00581452,2583.5,2583.1,3.2078]
[1739370908001,0.77414,2583.4,2583.1,3.2078]
[1739370908394,0.77416,2583.4,2583.1,3.2078]
[1739370908604,0.00581452,2583.5,2583.1,3.2078]
[1739370908799,0.00581452,2583.5,2583.4,3.2078]
[1739370910006,1.8089,2585.0,2583.4,16.99236486]
[1739370910205,0.77364,2585.1,2584.7,3.2078]
[1739370910403,0.77362,2585.2,2585.0,3.2078]
[1739370910806,0.77358,2585.3,2585.0,3.2078]
[1739370911002,15.64889369,2585.4,2584.6,3.2078]
[1739370911213,1.934,2585.2,2584.9,2.6e-06]
[1739370911409,0.77366,2585.0,2584.9,2.6e-06]
[1739370911707,0.64156758,2585.0,2584.9,2.6e-06]
[1739370911912,0.00568738,2585.4,2584.9,2.6e-06]
[1739370912209,0.00568738,2585.4,2585.1,3.2078]
[1739370912410,0.7736,2585.2,2585.1,3.19651287]
[1739370912713,0.77366,2585.0,2584.9,2.6e-06]
[1739370912911,14.56402486,2585.0,2584.9,2.6e-06]
[1739370913212,17.75502486,2585.0,2584.9,2.6e-06]
[1739370913810,0.77405,2583.7,2583.6,3.2078]
[1739370914007,3.2078,2584.2,2583.3,3.2078]
[1739370914308,5.11671,2584.3,2582.9,3.187]
[1739370914309,0.77421,2583.2,2582.9,3.2078]
[1739370914510,4.149,2584.9,2583.0,7.76956486]
[1739370914707,3.2078,2585.2,2584.5,3.2078]
[1739370914901,4.0638,2585.7,2584.8,3.2078]
[1739370915315,0.77362,2585.2,2584.8,3.2078]
[1739370915606,0.77362,2585.2,2584.6,0.77376]
[1739370915607,0.0058026,2585.5,2585.1,3.2078]
[1739370915812,0.0058026,2585.5,2585.4,3.2078]
[1739370916309,0.0058026,2585.5,2585.2,0.0058026]
[1739370916712,0.77357,2585.3,2585.2,0.0058026]
[1739370917308,6.77357,2585.3,2585.2,2.6e-06]
[1739370917511,0.77357,2585.3,2585.2,2.6e-06]
[1739370918505,6.77357,2585.3,2585.2,2.6e-06]
[1739370918815,0.77399,2583.9,2583.8,3.2078]
[1739370919009,3.18,2584.3,2583.8,3.2078]
[1739370919317,1.93461,2584.4,2583.8,3.2078]
[1739370919514,0.77399,2583.9,2583.8,3.2078]
[1739370919814,0.77388,2584.3,2583.8,3.2078]
[1739370920016,0.77388,2584.3,2584.2,3.2078]
[1739370920210,3.2078,2584.9,2583.9,3.2078]
[1739370920211,0.77396,2584.0,2583.9,3.2078]
[1739370920520,0.0058026,2584.3,2583.9,3.2078]
[1739370920709,0.77393,2584.2,2583.9,3.2078]
[1739370921015,0.0058026,2584.3,2583.9,3.2078]
[1739370921313,0.77396,2584.0,2583.9,3.2078]
[1739370921909,0.0058026,2584.3,2583.9,3.2078]
[1739370922114,0.0058026,2584.3,2584.2,3.2078]
[1739370922611,0.7796726,2584.3,2584.2,3.2078]
[1739370923118,0.77404,2583.8,2583.6,4.0803026]
[1739370923414,0.77405,2583.7,2583.6,3.2136026]
[1739370923612,0.77405,2583.7,2583.6,0.0058026]
[1739370923814,0.77405,2583.7,2583.6,2.6e-06]
[1739370924417,6.77405,2583.7,2583.6,2.6e-06]
[1739370925618,0.77435,2582.7,2582.6,3.2078]
[1739370926217,0.77453,2582.2,2582.1,3.2078]
[1739370926516,0.77468,2581.6,2581.5,3.2078]
[1739370927117,0.0058026,2581.8,2581.5,3.2078]
[1739370927515,0.9392,2583.1,2581.5,3.2078]
[1739370927516,3.2078,2583.2,2581.5,17.35149157]
[1739370927717,3.2078,2583.2,2582.5,3.2078]
[1739370927910,1.93557,2583.1,2582.2,3.2078]
[1739370928119,0.77433,2582.8,2582.7,3.2078]
[1739370928420,0.77434,2582.8,2582.7,3.2078]
[1739370928613,0.77441,2582.5,2582.4,3.2078]
[1739370928816,1.93574,2582.9,2582.4,3.2078]
[1739370929015,3.2078,2582.8,2582.1,3.2078]
[1739370929220,0.77447,2582.3,2582.2,0.0058026]
[1739370929424,0.0058026,2583.0,2582.2,0.0058026]
[1739370929425,0.77434,2582.8,2582.2,0.0058026]
[1739370929617,0.77434,2582.8,2582.7,3.2078]
[1739370929817,0.77447,2582.3,2582.2,3.2136026]
[1739370930117,0.0058026,2583.0,2582.2,3.2136026]
[1739370930319,0.0058026,2583.0,2582.5,3.2078]
[1739370930722,0.7743,2582.9,2582.5,3.2078]
[1739370930914,1.93526,2583.6,2582.5,3.2078]
[1739370930915,26.5948,2584.0,2582.8,3.2078]
[1739370931217,0.77417,2583.3,2583.2,3.2078]
[1739370931419,0.77429,2582.9,2582.8,3.2078]
[1739370931826,0.77441,2582.5,2582.4,3.2078]
[1739370932126,1.93557,2583.1,2582.4,3.2078]
[1739370932127,0.7801626,2582.7,2582.4,3.2078]
[1739370932328,0.0058026,2582.7,2582.4,3.2078]
[1739370932626,0.77422,2583.2,2582.4,17.39040853]
[1739370932826,3.104,2584.1,2583.1,3.2078]
[1739370933023,0.7742,2583.2,2583.1,3.2078]
[1739370933325,1.93497,2583.9,2583.1,3.2078]
[1739370933532,1.9349,2584.0,2583.1,3.2078]
[1739370933723,0.7742,2583.2,2583.1,3.2078]
[1739370934124,1.94080738,2583.8,2583.1,3.2078]
[1739370934323,0.7742,2583.2,2583.1,3.2078]
[1739370934526,0.77429,2582.9,2582.8,3.2078]
[1739370934727,1.93551,2583.2,2582.7,3.2078]
[1739370935031,0.00568738,2583.8,2583.0,3.2078]
[1739370935432,0.77422,2583.2,2583.0,3.2078]
[1739370935630,0.00568738,2583.8,2583.0,3.2078]
[1739370935928,0.77405,2583.7,2583.6,3.2078]
[1739370936134,0.77405,2583.7,2583.2,0.77418]
[1739370936135,0.77417,2583.3,2583.2,3.2078]
[1739370936429,0.00568738,2583.8,2582.8,3.2078]
[1739370936430,0.77429,2582.9,2582.8,3.2078]
[1739370936623,1.93523,2583.6,2582.8,3.2078]
[1739370936819,0.77429,2582.9,2582.8,3.2078]
[1739370937220,3.2078,2583.2,2582.5,3.2078]
[1739370937423,0.00568738,2583.8,2582.5,3.2078]
[1739370937424,0.77438,2582.6,2582.5,3.2078]
[1739370937826,0.77447,2582.3,2582.2,0.0058026]
[1739370938033,3.98227,2582.3,2582.2,2.6e-06]
[1739370938625,9.98227,2582.3,2582.2,2.6e-06]
[1739370938832,3.98227,2582.3,2582.2,2.6e-06]
[1739370939233,3.98227,2582.3,2580.7,3.2078]
[1739370939234,0.77488,2581.0,2580.7,3.2078]
[1739370939438,3.2078,2581.6,2580.7,3.2078]
[1739370939639,0.77489,2580.9,2580.7,3.2078]
[1739370939937,0.77492,2580.8,2580.7,3.2078]
[1739370940135,3.2078,2582.5,2580.8,4.97419387]
[1739370940329,1.93612,2582.4,2581.3,3.2078]
[1739370940531,0.77466,2581.7,2581.3,3.9883526]
[1739370940724,0.0058026,2581.8,2581.4,0.77472]
[1739370940932,0.77474,2581.4,2581.3,3.2136026]
[1739370941123,0.77474,2581.4,2581.3,0.0058026]
[1739370941326,0.77474,2581.4,2581.3,2.6e-06]
[1739370941731,3.98254,2581.4,2581.3,2.6e-06]
[1739370942035,0.77474,2581.4,2581.3,2.6e-06]
[1739370942232,3.2078,2581.7,2581.3,2.6e-06]
[1739370942233,0.77472,2581.5,2581.3,2.6e-06]
[1739370942434,0.7804326,2581.8,2581.4,0.77473]
[1739370942734,0.0058026,2581.8,2581.3,3.2078026]
[1739370942933,0.0058026,2581.8,2581.3,3.9825626]
[1739370942934,0.77467,2581.7,2581.3,3.9825626]
[1739370943133,0.77474,2581.4,2581.3,2.6e-06]
[1739370943329,3.98254,2581.4,2581.3,2.6e-06]
[1739370945731,0.77474,2581.4,2581.3,2.6e-06]
[1739370946135,0.0058026,2581.8,2581.4,0.77472]
[1739370946136,0.77466,2581.7,2581.4,0.77472]
[1739370946335,0.0058026,2581.8,2581.6,3.98246]
[1739370946534,1.93575,2582.9,2581.6,9.2078]
[1739370946835,0.77439,2582.6,2582.2,3.2078]
[1739370947040,3.2078,2583.5,2581.7,9.5782279]
[1739370947041,3.2078,2583.5,2582.5,3.2078]
[1739370947334,3.98187,2583.7,2583.2,0.77419]
[1739370947534,0.77391,2584.2,2583.6,0.77405]
[1739370947734,7.79036486,2584.9,2583.4,3.2078]
[1739370947735,0.77388,2584.3,2583.8,0.77401]
[1739370947940,0.77388,2584.3,2584.0,3.2078]
[1739370948237,0.7796826,2584.3,2584.0,3.2078]
[1739370948435,0.0058026,2584.3,2584.2,0.7739]
[1739370948641,6.2618,2585.6,2584.2,6.7739]
[1739370948837,0.77368,2585.0,2584.9,3.18004842]
[1739370949540,3.2078,2585.3,2584.3,3.2078]
[1739370949739,0.7739,2584.2,2584.0,3.2078]
[1739370950037,3.21348478,2585.2,2584.5,0.0058026]
[1739370950239,0.77371,2584.9,2584.6,3.2078]
[1739370950440,0.01802387,2584.8,2584.6,3.2078]
[1739370950741,0.79175387,2584.8,2584.6,3.2078]
[1739370950939,0.01802387,2584.8,2584.5,0.0058026]
[1739370951141,0.77378,2584.6,2584.5,0.0058026]
[1739370951640,0.01802387,2584.6,2584.5,0.0058026]
[1739370952542,0.80982774,2584.6,2584.5,0.0058026]
[1739370953040,3.24384774,2584.6,2584.0,3.2078]
[1739370953236,0.77408,2583.6,2583.5,3.2078]
[1739370953438,0.03604774,2583.6,2583.5,3.2078]
[1739370953738,0.77378,2584.6,2584.0,0.77395]
[1739370953942,0.77378,2584.6,2584.5,3.2078]
[1739370954439,0.0058026,2584.8,2584.3,0.0058026]
[1739370954636,0.0058026,2584.8,2584.7,0.77375]
[1739370954837,0.0058026,2584.8,2584.6,3.18978804]
[1739370955236,0.77375,2584.7,2584.6,3.18978804]
[1739370955443,0.0058026,2584.8,2584.6,3.18978804]
[1739370955646,3.2078,2585.9,2584.9,0.77366]
[1739370955850,3.2078,2585.9,2585.0,3.2078]
[1739370956046,3.2078,2585.9,2585.3,3.2078]
[1739370956249,1.93355,2585.8,2585.0,3.2078]
[1739370956450,0.77369,2584.9,2584.8,3.2078]
[1739370956645,0.79170196,2584.9,2584.8,3.2078]
[1739370956845,0.01801196,2584.9,2584.8,3.2078]
[1739370957045,0.00568478,2585.1,2584.8,9.2078]
[1739370957245,0.77353,2585.5,2584.8,9.2078]